bitfinex/quotes_BTCUSD_20250713
["timestamp","ask_amount","ask_price","bid_price","bid_amount"]
[1752446251642,0.0004,118490.0,118480.0,0.85134759]
[1752446251846,0.0004,118490.0,118480.0,0.85595759]
[1752446252510,0.0004,118490.0,118480.0,1.08627642]
[1752446252743,0.0004,118490.0,118480.0,0.85595759]
[1752446252960,0.00048435,118490.0,118480.0,0.88124459]
[1752446253173,0.00048435,118490.0,118480.0,1.03550349]
[1752446253416,0.0004,118500.0,118490.0,0.0445]
[1752446253633,0.0004,118500.0,118490.0,0.69888821]
[1752446253835,0.0004,118500.0,118490.0,0.70136821]
[1752446255229,0.0004,118500.0,118490.0,1.00864821]
[1752446255476,0.0024,118510.0,118500.0,0.0224]
[1752446255699,0.0024,118510.0,118500.0,0.67678821]
[1752446256061,0.0024,118510.0,118500.0,0.65438821]
[1752446256264,0.0024,118510.0,118500.0,0.34743993]
[1752446257333,0.0024,118510.0,118500.0,0.37296931]
[1752446257704,0.0034,118510.0,118500.0,0.66866931]
[1752446257935,0.0034,118510.0,118500.0,0.69026931]
[1752446258321,0.0034,118510.0,118500.0,0.66866931]
[1752446259509,0.0034,118510.0,118500.0,0.67727036]
[1752446259708,0.0034,118510.0,118500.0,0.98421864]
[1752446260886,0.0034,118510.0,118500.0,0.67727036]
[1752446263707,0.0034,118510.0,118500.0,0.38157036]
[1752446263876,0.0034,118510.0,118500.0,0.68851864]
[1752446264368,0.0034,118510.0,118500.0,0.38157036]
[1752446264577,0.0034,118510.0,118500.0,0.68851864]
[1752446265179,0.0034,118510.0,118500.0,0.99571864]
[1752446265669,0.0034,118510.0,118500.0,0.68877036]
[1752446265884,0.0034,118510.0,118500.0,0.99571864]
[1752446266657,0.0034,118510.0,118500.0,0.68877036]
[1752446267777,0.02911,118510.0,118500.0,0.68877036]
[1752446268168,0.0259,118510.0,118500.0,0.68877036]
[1752446268671,0.0034,118510.0,118500.0,0.68877036]
[1752446269501,0.0034,118510.0,118500.0,0.98447036]
[1752446269887,0.0034,118510.0,118500.0,0.87939036]
[1752446272200,0.0034,118510.0,118500.0,0.67727036]
[1752446275085,0.0034,118510.0,118500.0,0.9074805]
[1752446275303,0.0034,118510.0,118500.0,1.2146805]
[1752446275509,0.00255619,118510.0,118500.0,1.2146805]
[1752446279301,0.00255619,118510.0,118500.0,0.98447036]
[1752446279511,0.00255619,118510.0,118500.0,1.2146805]
[1752446279894,0.00576619,118510.0,118500.0,1.2146805]
[1752446280229,0.00255619,118510.0,118500.0,1.2146805]
[1752446281963,0.00255619,118510.0,118500.0,0.87939036]
[1752446282171,0.00255619,118510.0,118500.0,1.1096005]
[1752446283473,0.00255619,118510.0,118500.0,1.13769064]
[1752446283688,0.00255619,118510.0,118500.0,1.16217064]
[1752446284123,0.00255619,118510.0,118500.0,1.18457064]
[1752446285229,0.02046,118530.0,118500.0,1.54177064]
[1752446285439,0.02058648,118530.0,118520.0,0.46042028]
[1752446285646,0.02058648,118530.0,118520.0,0.57722007]
[1752446286262,0.04783648,118530.0,118520.0,0.57722007]
[1752446287103,0.04783648,118530.0,118520.0,0.34700993]
[1752446287361,0.04983648,118530.0,118520.0,0.57722007]
[1752446287778,0.05083648,118530.0,118520.0,0.57722007]
[1752446288666,0.05083648,118530.0,118520.0,0.34700993]
[1752446288884,0.30294662,118530.0,118520.0,0.08542993]
[1752446289086,0.30184662,118530.0,118520.0,0.12968]
[1752446289501,0.30084662,118530.0,118520.0,0.12968]
[1752446289741,0.29884662,118530.0,118520.0,0.12968]
[1752446291009,0.06863648,118530.0,118520.0,0.12968]
[1752446291220,0.37556685,118530.0,118520.0,0.12968]
[1752446295536,0.37472319,118530.0,118520.0,0.12968]
[1752446296775,0.06779282,118530.0,118520.0,0.12968]
[1752446296981,0.37472319,118530.0,118520.0,0.12968]
[1752446297425,0.33166319,118530.0,118520.0,0.12964]
[1752446298091,0.37556319,118530.0,118520.0,0.12964]
[1752446298894,0.37756319,118530.0,118520.0,0.12964]
[1752446299098,0.0216,118520.0,118500.0,0.33272938]
[1752446299310,0.02605,118510.0,118500.0,0.33272938]
[1752446299513,0.35618037,118510.0,118500.0,0.39262993]
[1752446299874,0.35618037,118510.0,118500.0,0.43684]
[1752446300328,0.35618037,118510.0,118500.0,0.43784]
[1752446301168,0.35618037,118510.0,118500.0,0.4378]
[1752446301581,0.35618037,118510.0,118500.0,0.4368]
[1752446301986,0.04925,118510.0,118500.0,0.4368]
[1752446302193,0.04925,118510.0,118500.0,0.4378]
[1752446303031,0.04925,118510.0,118500.0,0.4388]
[1752446304466,0.04925,118510.0,118500.0,0.4378]
[1752446304682,0.04925,118510.0,118500.0,0.4388]
[1752446304891,0.35618037,118510.0,118500.0,0.4388]
[1752446305941,0.04925,118510.0,118500.0,0.4388]
[1752446315446,0.04840619,118510.0,118500.0,0.4388]
[1752446318994,0.35533656,118510.0,118500.0,0.4388]
[1752446319667,0.04840619,118510.0,118500.0,0.4388]
[1752446319820,0.04840619,118510.0,118500.0,0.3092]
[1752446320025,0.04840619,118510.0,118500.0,0.43876]
[1752446321149,0.27866767,118510.0,118500.0,0.43876]
[1752446322436,0.00505,118510.0,118500.0,0.4409]
[1752446322660,0.23531148,118510.0,118500.0,0.4409]
[1752446323142,0.25831148,118510.0,118500.0,0.4409]
[1752446325687,0.23531148,118510.0,118500.0,0.4409]
[1752446326168,0.02622,118520.0,118500.0,1.03363289]
[1752446326355,0.00322,118520.0,118500.0,0.80337141]
[1752446327099,0.6351443,118530.0,118510.0,0.23026148]
[1752446327100,0.40488282,118530.0,118510.0,0.23026148]
[1752446327309,0.2983643,118530.0,118520.0,0.12952]
[1752446327514,0.3003343,118530.0,118520.0,0.12952]
[1752446327936,0.07007282,118530.0,118520.0,0.12952]
[1752446328184,0.04687282,118530.0,118520.0,0.13166]
[1752446328866,0.3021343,118530.0,118520.0,0.13166]
[1752446329090,0.07187282,118530.0,118520.0,0.13166]
[1752446329508,0.07287282,118530.0,118520.0,0.13166]
[1752446331572,0.07287282,118530.0,118520.0,0.12952]
[1752446332462,0.379792,118530.0,118520.0,0.12952]
[1752446333089,0.07287282,118530.0,118520.0,0.12952]
[1752446333295,0.379792,118530.0,118520.0,0.12952]
[1752446335421,0.37894834,118530.0,118520.0,0.12952]
[1752446335825,0.07202916,118530.0,118520.0,0.12952]
[1752446336036,0.37894834,118530.0,118520.0,0.12952]
[1752446337868,0.37894834,118530.0,118510.0,0.08542993]
[1752446338076,0.37894834,118530.0,118520.0,0.12944]
[1752446338763,0.07102916,118530.0,118520.0,0.12944]
[1752446338964,0.37794834,118530.0,118520.0,0.12944]
[1752446340233,0.37794834,118530.0,118520.0,0.33156]
[1752446340677,0.37894834,118530.0,118520.0,0.33156]
[1752446345032,0.37894834,118530.0,118520.0,0.43664]
[1752446349249,0.35594834,118530.0,118520.0,0.43664]
[1752446351137,0.27923626,118530.0,118520.0,0.43664]
[1752446351974,0.30063626,118530.0,118520.0,0.43664]
[1752446355374,0.2997926,118530.0,118520.0,0.43664]
[1752446359765,0.2783926,118530.0,118520.0,0.43656]
[1752446365154,0.0209955,118530.0,118520.0,1.02991413]
[1752446365370,0.0209955,118530.0,118520.0,0.56949993]
[1752446365578,0.0209955,118530.0,118520.0,0.79970703]
[1752446366211,0.0199955,118530.0,118520.0,0.79970703]
[1752446366594,0.0179955,118530.0,118520.0,0.79970703]
[1752446367035,0.0189955,118530.0,118520.0,0.69462703]
[1752446369880,0.0189955,118530.0,118520.0,0.49250703]
[1752446370083,0.0189955,118530.0,118520.0,0.78820703]
[1752446372648,0.0189955,118530.0,118520.0,0.55799993]
[1752446372864,0.0189955,118530.0,118520.0,0.78820703]
[1752446375236,0.0189955,118530.0,118520.0,1.09536703]
[1752446375449,0.01815184,118530.0,118520.0,1.09536703]
[1752446377587,0.01815184,118530.0,118520.0,0.99435993]
[1752446377810,0.01815184,118530.0,118520.0,1.22456703]
[1752446379519,0.29808894,118530.0,118520.0,0.58533993]
[1752446379765,0.29808894,118530.0,118520.0,0.49778]
[1752446379978,0.06788184,118530.0,118520.0,0.62702]
[1752446380193,0.29808894,118530.0,118520.0,0.62702]
[1752446380837,0.29808894,118530.0,118520.0,0.33132]
[1752446385361,0.29808894,118530.0,118520.0,0.4364]
[1752446388702,0.52829604,118530.0,118520.0,0.30716]
[1752446388905,0.52829604,118530.0,118520.0,0.43636]
[1752446389288,0.29808894,118530.0,118520.0,0.43636]
[1752446391039,0.06788184,118530.0,118520.0,0.43636]
[1752446391274,0.3007254,118530.0,118520.0,0.43636]
[1752446391485,0.29808894,118530.0,118520.0,0.43636]
[1752446393069,0.06788184,118530.0,118520.0,0.43636]
[1752446393280,0.3007254,118530.0,118520.0,0.43636]
[1752446393498,0.29808894,118530.0,118520.0,0.43636]
[1752446395408,0.29724528,118530.0,118520.0,0.43636]
[1752446400535,0.06703818,118530.0,118520.0,0.43636]
[1752446400940,0.04443818,118530.0,118520.0,0.43636]
[1752446401144,0.27464528,118530.0,118520.0,0.43636]
[1752446401375,0.01730818,118530.0,118520.0,0.43833]
[1752446401978,0.01730818,118530.0,118520.0,0.6685371]
[1752446402272,0.02025818,118530.0,118520.0,0.43833]
[1752446402525,0.02229818,118530.0,118520.0,0.43833]
[1752446404001,0.25250528,118530.0,118520.0,0.43833]
[1752446404193,0.02229818,118530.0,118520.0,0.43833]
[1752446404484,0.25250528,118530.0,118520.0,0.43833]
[1752446404896,0.02229818,118530.0,118520.0,0.43833]
[1752446406119,0.25250528,118530.0,118520.0,0.43833]
[1752446408722,0.02229818,118530.0,118520.0,0.43833]
[1752446411076,0.02229818,118530.0,118520.0,0.6685371]
[1752446411323,0.01730818,118530.0,118520.0,0.43833]
[1752446413681,0.01730818,118530.0,118520.0,0.6915371]
[1752446414487,0.01730818,118530.0,118520.0,0.77696703]
[1752446414700,0.01730818,118530.0,118520.0,0.77944703]
[1752446414928,0.01730818,118530.0,118520.0,0.80174703]
[1752446415529,0.01646452,118530.0,118520.0,0.80174703]
[1752446416251,0.01646452,118530.0,118520.0,0.77944703]
[1752446416485,0.01646452,118530.0,118520.0,0.77696703]
[1752446420416,0.01646452,118530.0,118520.0,0.75396703]
[1752446426035,0.01646452,118530.0,118520.0,0.77696703]
[1752446427302,0.01646452,118530.0,118520.0,1.00717413]
[1752446427512,0.01646452,118530.0,118520.0,1.00965413]
[1752446427726,0.01646452,118530.0,118520.0,1.03185413]
[1752446428665,0.01646452,118530.0,118520.0,0.80164703]
[1752446432023,0.01646452,118530.0,118520.0,0.54675993]
[1752446432231,0.01646452,118530.0,118520.0,0.77696703]
[1752446434556,0.01646452,118530.0,118520.0,0.77944703]
[1752446434790,0.01646452,118530.0,118520.0,0.80124703]
[1752446435003,0.01646452,118530.0,118520.0,1.03145413]
[1752446435427,0.01562086,118530.0,118520.0,1.03145413]
[1752446436122,0.01562086,118530.0,118520.0,1.00965413]
[1752446436901,0.01562086,118530.0,118520.0,1.00717413]
[1752446437108,0.01562086,118530.0,118520.0,1.00965413]
[1752446439400,0.01562086,118530.0,118520.0,1.32735413]
[1752446439799,0.01562086,118530.0,118520.0,0.86693993]
[1752446440032,0.01562086,118530.0,118520.0,1.32735413]
[1752446440722,0.01562086,118530.0,118520.0,1.09714703]
[1752446441568,0.01562086,118530.0,118520.0,1.32735413]
[1752446442808,0.01562086,118530.0,118520.0,1.22227413]
[1752446445104,0.01562086,118530.0,118520.0,1.32735413]
[1752446447030,0.01562086,118530.0,118520.0,1.30535413]
[1752446452479,0.01562086,118530.0,118520.0,1.20027413]
[1752446454500,0.01562086,118530.0,118520.0,0.99819413]
[1752446455363,0.0147772,118530.0,118520.0,1.30535413]
[1752446458219,0.0147772,118530.0,118520.0,1.20027413]
[1752446459102,0.00635847,118530.0,118520.0,1.45158123]
[1752446459565,0.02654,118550.0,118540.0,0.4604142]
[1752446459831,0.0270394,118550.0,118540.0,0.67692413]
[1752446460516,0.0006994,118550.0,118540.0,0.67692413]
[1752446461054,0.0036994,118550.0,118540.0,0.67692413]
[1752446461806,0.0066394,118550.0,118540.0,0.67692413]
[1752446462020,0.0301794,118550.0,118540.0,0.44671703]
[1752446462233,0.0521794,118550.0,118540.0,0.44671703]
[1752446463078,0.0521794,118550.0,118540.0,0.45496026]
[1752446463289,0.0521794,118550.0,118540.0,0.44671703]
[1752446465081,0.0521794,118550.0,118540.0,0.67692413]
[1752446465284,0.0521794,118550.0,118540.0,0.98404413]
[1752446465666,0.0321794,118550.0,118540.0,0.98404413]
[1752446467351,0.0321794,118550.0,118540.0,0.99264992]
[1752446468393,0.0321794,118550.0,118540.0,0.76244282]
[1752446469146,0.0321794,118550.0,118540.0,0.75383703]
[1752446470218,0.0056994,118550.0,118540.0,0.75383703]
[1752446470832,0.0056994,118550.0,118540.0,1.00554413]
[1752446471042,0.0056994,118550.0,118540.0,1.01404027]
[1752446471262,0.0056994,118550.0,118540.0,1.01652027]
[1752446471478,0.0056994,118550.0,118540.0,1.33382027]
[1752446473210,0.0056994,118550.0,118540.0,0.87340607]
[1752446473426,0.0056994,118550.0,118540.0,1.1800998]
[1752446474546,0.0056994,118550.0,118540.0,1.0750198]
[1752446474748,0.0056994,118550.0,118540.0,1.0534198]
[1752446475305,0.0056994,118550.0,118540.0,1.1584598]
[1752446475576,0.00485588,118550.0,118540.0,1.1584598]
[1752446475782,0.00485588,118550.0,118540.0,0.85176607]
[1752446475991,0.00485588,118550.0,118540.0,1.1559798]
[1752446479868,0.0002,118560.0,118550.0,0.30669373]
[1752446480122,0.0202842,118560.0,118550.0,0.21642993]
[1752446480333,0.0442242,118560.0,118550.0,0.52312366]
[1752446480548,0.0463642,118560.0,118550.0,0.52312366]
[1752446481196,0.0473642,118560.0,118550.0,0.52312366]
[1752446482589,0.0483642,118560.0,118550.0,0.52312366]
[1752446485256,0.0483642,118560.0,118550.0,0.83020366]
[1752446485461,0.0483642,118560.0,118550.0,1.12590366]
[1752446486000,0.0483642,118560.0,118550.0,0.81920993]
[1752446486212,0.0483642,118560.0,118550.0,1.12590366]
[1752446488812,0.0273642,118560.0,118550.0,1.12590366]
[1752446489338,0.0273642,118560.0,118550.0,1.02086366]
[1752446490188,0.0273642,118560.0,118550.0,0.89198366]
[1752446490403,0.0273642,118560.0,118550.0,1.02082366]
[1752446492189,0.0273642,118560.0,118550.0,0.81878366]
[1752446492962,0.0273642,118560.0,118550.0,0.51208993]
[1752446493377,0.0273642,118560.0,118550.0,0.81878366]
[1752446495019,0.0273642,118560.0,118550.0,0.81426638]
[1752446495260,0.0273642,118560.0,118550.0,1.04467619]
[1752446495445,0.02652075,118560.0,118550.0,1.04467619]
[1752446499906,0.02144075,118560.0,118550.0,1.04467619]
[1752446500116,0.02144075,118560.0,118550.0,0.93963619]
[1752446500318,0.02144075,118560.0,118550.0,0.96033619]
[1752446500319,0.0020842,118560.0,118550.0,0.96033619]
[1752446500727,0.0020842,118560.0,118550.0,0.93963619]
[1752446503610,0.0020842,118560.0,118550.0,0.70961265]
[1752446503823,0.0020842,118560.0,118550.0,0.93963619]
[1752446504237,0.0051842,118560.0,118550.0,0.73759619]
[1752446504419,0.0020842,118560.0,118550.0,0.73759619]
[1752446505209,0.0020842,118560.0,118550.0,1.04467619]
[1752446505424,0.0252842,118560.0,118550.0,1.04467619]
[1752446506204,0.0274042,118560.0,118550.0,1.04467619]
[1752446508150,0.0274042,118560.0,118550.0,0.81465265]
[1752446508359,0.0274042,118560.0,118550.0,1.04467619]
[1752446511412,0.0274042,118560.0,118550.0,0.81465265]
[1752446511618,0.0274042,118560.0,118550.0,1.04467619]
[1752446513232,0.0274042,118560.0,118550.0,0.93963619]
[1752446515289,0.0274042,118560.0,118550.0,1.04467619]
[1752446515524,0.02656075,118560.0,118550.0,1.04467619]
[1752446516159,0.02656075,118560.0,118550.0,0.81465265]
[1752446516360,0.02656075,118560.0,118550.0,1.04467619]
[1752446516543,0.00124075,118560.0,118550.0,1.04467619]
[1752446518172,0.0442,118570.0,118550.0,0.91583973]
[1752446518173,0.0024,118570.0,118550.0,0.91583973]
[1752446518419,0.00244988,118570.0,118560.0,0.98939062]
[1752446518625,0.0204,118580.0,118560.0,1.07688055]
[1752446518799,0.0204,118580.0,118570.0,0.57289347]
[1752446519002,0.0204,118580.0,118570.0,0.65147158]
[1752446519568,0.0204,118580.0,118570.0,0.67688595]
[1752446520181,0.0204,118580.0,118570.0,0.69728595]
[1752446520386,0.0204,118580.0,118570.0,0.72046595]
[1752446520624,0.0204,118580.0,118570.0,0.72246595]
[1752446521210,0.0204,118580.0,118570.0,0.72646595]
[1752446521839,0.0204,118580.0,118570.0,0.4199243]
[1752446522042,0.0204,118580.0,118570.0,0.72646595]
[1752446522428,0.0204,118580.0,118570.0,0.3967443]
[1752446522634,0.0204,118580.0,118570.0,0.3763443]
[1752446523085,0.0204,118580.0,118570.0,0.68288595]
[1752446523298,0.0204,118580.0,118570.0,0.3763443]
[1752446523984,0.0204,118580.0,118570.0,0.68288595]
[1752446524230,0.0204,118580.0,118570.0,0.3763443]
[1752446524431,0.0204,118580.0,118570.0,0.68288595]
[1752446525355,0.0204,118580.0,118570.0,0.98992595]
[1752446528940,0.0204,118580.0,118570.0,0.88488595]
[1752446530162,0.0204,118580.0,118570.0,0.68288595]
[1752446532849,0.0204,118580.0,118570.0,0.97858595]
[1752446533139,0.0204,118580.0,118570.0,0.99878595]
[1752446533391,0.0204,118580.0,118570.0,1.00126595]
[1752446534883,0.0204,118580.0,118570.0,0.99878595]
[1752446535291,0.0204,118580.0,118570.0,1.30582595]
[1752446535503,0.01955669,118580.0,118570.0,1.30582595]
[1752446535757,0.01955669,118580.0,118570.0,1.28562595]
[1752446539025,0.01955669,118580.0,118570.0,1.18058595]
[1752446541301,0.01955669,118580.0,118570.0,0.97858595]
[1752446545311,0.01955669,118580.0,118570.0,1.28562595]
[1752446548782,0.01955669,118580.0,118570.0,1.30482595]
[1752446551064,0.01955669,118580.0,118570.0,1.28562595]
[1752446551370,0.01955669,118580.0,118570.0,1.18058595]
[1752446555363,0.01955669,118580.0,118570.0,1.28562595]
[1752446555586,0.01871338,118580.0,118570.0,1.28562595]
[1752446555835,0.03941338,118580.0,118570.0,1.28562595]
[1752446557020,0.03941338,118580.0,118570.0,1.20902482]
[1752446558997,0.01871338,118580.0,118570.0,1.20902482]
[1752446561368,0.01871338,118580.0,118570.0,1.10398482]
[1752446563405,0.01871338,118580.0,118570.0,0.90198482]
[1752446565388,0.01871338,118580.0,118570.0,1.20902482]
[1752446567556,0.01871338,118580.0,118570.0,0.91332482]
[1752446569347,0.01871338,118580.0,118570.0,0.80828482]
[1752446571513,0.01871338,118580.0,118570.0,0.55084482]
[1752446571712,0.01871338,118580.0,118570.0,0.47740482]
[1752446571861,0.03821338,118580.0,118570.0,0.47740482]
[1752446573963,0.01871338,118580.0,118570.0,0.47740482]
[1752446574598,0.01871338,118580.0,118570.0,0.47988482]
[1752446574812,0.01871338,118580.0,118570.0,0.50018482]
[1752446575304,0.01871338,118580.0,118570.0,0.80714482]
[1752446575500,0.01787007,118580.0,118570.0,0.80714482]
[1752446575814,0.01787007,118580.0,118570.0,0.78684482]
[1752446576152,0.01787007,118580.0,118570.0,0.78436482]
[1752446576353,0.01787007,118580.0,118570.0,0.80426482]
[1752446576561,0.01787007,118580.0,118570.0,0.78684482]
[1752446576832,0.01787007,118580.0,118570.0,0.78436482]
[1752446577256,0.01787007,118580.0,118570.0,1.08006482]
[1752446579853,0.01787007,118580.0,118570.0,0.97506482]
[1752446581834,0.01787007,118580.0,118570.0,0.77310482]
[1752446584670,0.01787007,118580.0,118570.0,0.5431643]
[1752446584910,0.01787007,118580.0,118570.0,0.77310482]
[1752446585314,0.01787007,118580.0,118570.0,1.08014482]
[1752446585664,0.03717007,118580.0,118570.0,1.08014482]
[1752446586357,0.04021007,118580.0,118570.0,1.08014482]
[1752446587213,0.03717007,118580.0,118570.0,1.08014482]
[1752446588698,0.04218007,118580.0,118570.0,1.08014482]
[1752446589904,0.04218007,118580.0,118570.0,0.8502043]
[1752446590115,0.52096111,118580.0,118570.0,0.3188443]
[1752446590517,0.52096111,118580.0,118570.0,0.4473243]
[1752446590749,0.29102059,118580.0,118570.0,0.4473243]
[1752446590952,0.06108007,118580.0,118570.0,0.4453243]
[1752446591417,0.29102059,118580.0,118570.0,0.4463243]
[1752446591863,0.29102059,118580.0,118570.0,0.4423243]
[1752446592089,0.29102059,118580.0,118570.0,0.3168443]
[1752446592368,0.29102059,118580.0,118570.0,0.4453243]
[1752446593780,0.06108007,118580.0,118570.0,0.4453243]
[1752446594028,0.29102059,118580.0,118570.0,0.4453243]
[1752446595255,0.29102059,118580.0,118570.0,0.5503643]
[1752446596623,0.06108007,118580.0,118570.0,0.5503643]
[1752446596942,0.29102059,118580.0,118570.0,0.5503643]
[1752446598504,0.06108007,118580.0,118570.0,0.5503643]
[1752446598716,0.29102059,118580.0,118570.0,0.5503643]
[1752446599336,0.06108007,118580.0,118570.0,0.5503643]
[1752446599547,0.29102059,118580.0,118570.0,0.5503643]
[1752446601420,0.29102059,118580.0,118570.0,0.52494993]
[1752446606040,0.52096111,118580.0,118570.0,0.52494993]
[1752446609670,0.29102059,118580.0,118570.0,0.52494993]
[1752446610068,0.06108007,118580.0,118570.0,0.52494993]
[1752446610334,0.29102059,118580.0,118570.0,0.52494993]
[1752446611155,0.06108007,118580.0,118570.0,0.52494993]
[1752446611362,0.29102059,118580.0,118570.0,0.52494993]
[1752446625579,0.06108007,118580.0,118570.0,0.52494993]
[1752446625737,0.29102059,118580.0,118570.0,0.52494993]
[1752446631434,0.04218007,118580.0,118570.0,0.52494993]
[1752446635303,0.04218007,118580.0,118570.0,0.75489045]
[1752446636536,0.04218007,118580.0,118570.0,0.52494993]
[1752446636792,0.27212059,118580.0,118570.0,0.52494993]
[1752446637443,0.04218007,118580.0,118570.0,0.52494993]
[1752446639778,0.29202059,118580.0,118570.0,0.52494993]
[1752446640188,0.27212059,118580.0,118570.0,0.52494993]
[1752446641246,0.04218007,118580.0,118570.0,0.52494993]
[1752446641919,0.27212059,118580.0,118570.0,0.52494993]
[1752446643822,0.27212059,118580.0,118570.0,0.52710993]
[1752446644217,0.04218007,118580.0,118570.0,0.52710993]
[1752446644427,0.27212059,118580.0,118570.0,0.52710993]
[1752446646110,0.04218007,118580.0,118570.0,0.52710993]
[1752446646329,0.01787007,118580.0,118570.0,0.75705045]
[1752446646544,0.01787007,118580.0,118570.0,0.79943045]
[1752446648140,0.01787007,118580.0,118570.0,1.09513045]
[1752446649030,0.01787007,118580.0,118570.0,0.99009045]
[1752446653031,0.01787007,118580.0,118570.0,0.78809045]
[1752446655181,0.01787007,118580.0,118570.0,1.09513045]
[1752446658059,0.01787007,118580.0,118570.0,0.96665045]
[1752446658463,0.01787007,118580.0,118570.0,0.98989045]
[1752446659300,0.01787007,118580.0,118570.0,0.96999045]
[1752446661018,0.01787007,118580.0,118570.0,0.63971045]
[1752446661222,0.01787007,118580.0,118570.0,0.76799045]
[1752446661748,0.01787007,118580.0,118570.0,0.63971045]
[1752446661919,0.01787007,118580.0,118570.0,0.76799045]
[1752446662329,0.01787007,118580.0,118570.0,0.63971045]
[1752446662559,0.01787007,118580.0,118570.0,0.76799045]
[1752446663081,0.01787007,118580.0,118570.0,0.63971045]
[1752446663383,0.01787007,118580.0,118570.0,0.76799045]
[1752446665281,0.01787007,118580.0,118570.0,1.07503045]
[1752446665897,0.01787007,118580.0,118570.0,1.32377097]
[1752446666274,0.01787007,118580.0,118570.0,1.21873097]
[1752446667552,0.01787007,118580.0,118570.0,1.01673097]
[1752446668626,0.01767007,118580.0,118570.0,1.01673097]
[1752446668830,0.01767007,118580.0,118570.0,0.55684993]
[1752446669034,0.01767007,118580.0,118570.0,1.01673097]
[1752446670719,0.01767007,118580.0,118570.0,0.55684993]
[1752446670933,0.01767007,118580.0,118570.0,0.78679045]
[1752446672233,0.01767007,118580.0,118570.0,0.76799045]
[1752446675232,0.01767007,118580.0,118570.0,1.07495045]
[1752446676567,0.01767007,118580.0,118570.0,1.07247045]
[1752446678740,0.01767007,118580.0,118570.0,0.73752993]
[1752446678949,0.01767007,118580.0,118570.0,0.94747045]
[1752446679374,0.01767007,118580.0,118570.0,0.81919045]
[1752446679560,0.01767007,118580.0,118570.0,0.94739045]
[1752446679803,0.01767007,118580.0,118570.0,0.74543045]
[1752446680512,0.01767007,118580.0,118570.0,0.51548993]
[1752446680720,0.01767007,118580.0,118570.0,0.74543045]
[1752446680923,0.01767007,118580.0,118570.0,0.61723045]
[1752446681122,0.01767007,118580.0,118570.0,0.74543045]
[1752446682538,0.01767007,118580.0,118570.0,0.38728993]
[1752446682682,0.01767007,118580.0,118570.0,0.74543045]
[1752446683651,0.01767007,118580.0,118570.0,0.61723045]
[1752446683855,0.01767007,118580.0,118570.0,0.74543045]
[1752446685310,0.01767007,118580.0,118570.0,1.05239045]
[1752446687225,0.01767007,118580.0,118570.0,0.58924993]
[1752446687459,0.06227007,118580.0,118570.0,0.71528993]
[1752446688108,0.06227007,118580.0,118570.0,0.94523045]
[1752446690099,0.06227007,118580.0,118570.0,0.51332993]
[1752446690305,0.06227007,118580.0,118570.0,0.74327045]
[1752446690512,0.06227007,118580.0,118570.0,0.51332993]
[1752446690715,0.06227007,118580.0,118570.0,0.74327045]
[1752446691359,0.06227007,118580.0,118570.0,0.51332993]
[1752446691786,0.06227007,118580.0,118570.0,0.74327045]
[1752446692463,0.06227007,118580.0,118570.0,0.51332993]
[1752446692652,0.29221059,118580.0,118570.0,0.38512993]
[1752446692874,0.29221059,118580.0,118570.0,0.51332993]
[1752446695330,0.29221059,118580.0,118570.0,0.82028993]
[1752446695547,0.29221059,118580.0,118570.0,0.52458993]
[1752446696715,0.29221059,118580.0,118570.0,0.52454993]
[1752446697136,0.29221059,118580.0,118570.0,0.39638993]
[1752446697345,0.29221059,118580.0,118570.0,0.52458993]
[1752446699301,0.06227007,118580.0,118570.0,0.75453045]
[1752446702568,0.06227007,118580.0,118570.0,0.75653045]
[1752446702775,0.01767007,118580.0,118570.0,0.75653045]
[1752446703127,0.01767007,118580.0,118570.0,1.00597097]
[1752446703344,0.01767007,118580.0,118570.0,0.77603045]
[1752446703537,0.01767007,118580.0,118570.0,0.64783045]
[1752446703743,0.01767007,118580.0,118570.0,0.77599045]
[1752446707238,0.01767007,118580.0,118570.0,1.02871097]
[1752446707450,0.01767007,118580.0,118570.0,1.21941097]
[1752446708314,0.01767007,118580.0,118570.0,1.01745097]
[1752446708757,0.01767007,118580.0,118570.0,0.78751045]
[1752446715206,0.01767007,118580.0,118570.0,1.09447045]
[1752446715643,0.01767007,118580.0,118570.0,1.32441097]
[1752446715848,0.01767007,118580.0,118570.0,1.09447045]
[1752446716385,0.01767007,118580.0,118570.0,1.32441097]
[1752446717059,0.01767007,118580.0,118570.0,1.30411097]
[1752446717649,0.01767007,118580.0,118570.0,1.07417045]
[1752446719288,0.01767007,118580.0,118570.0,0.84101045]
[1752446719488,0.01767007,118580.0,118570.0,1.19911097]
[1752446720810,0.01767007,118580.0,118570.0,0.86899097]
[1752446720949,0.01767007,118580.0,118570.0,0.99715097]
[1752446721536,0.01767007,118580.0,118570.0,0.76721045]
[1752446725175,0.01767007,118580.0,118570.0,1.07417045]
[1752446726974,0.01767007,118580.0,118570.0,1.07169045]
[1752446727178,0.01767007,118580.0,118570.0,1.30163097]
[1752446727360,0.01767007,118580.0,118570.0,1.07169045]
[1752446727767,0.01767007,118580.0,118570.0,1.05219045]
[1752446729071,0.01767007,118580.0,118570.0,1.07199045]
[1752446730808,0.01767007,118580.0,118570.0,0.96699045]
[1752446732175,0.01767007,118580.0,118570.0,1.19941097]
[1752446732797,0.01767007,118580.0,118570.0,1.53675097]
[1752446732980,0.01767007,118580.0,118570.0,1.07686993]
[1752446733126,0.01767007,118580.0,118570.0,1.53675097]
[1752446734167,0.01767007,118580.0,118570.0,1.33479097]
[1752446735186,0.01767007,118580.0,118570.0,1.64175097]
[1752446735387,0.01767007,118580.0,118570.0,1.63875097]
[1752446735711,0.01767007,118580.0,118570.0,1.64475097]
[1752446736648,0.01767007,118580.0,118570.0,1.64375097]
[1752446736893,0.01767007,118580.0,118570.0,1.56155097]
[1752446738381,0.01767007,118580.0,118570.0,1.54175097]
[1752446740044,0.01767007,118580.0,118570.0,1.53927097]
[1752446740242,0.01767007,118580.0,118570.0,0.74926993]
[1752446740450,0.01767007,118580.0,118570.0,0.85758993]
[1752446740702,0.01767007,118580.0,118570.0,1.08753045]
[1752446742272,0.01767007,118580.0,118570.0,0.95941045]
[1752446742483,0.01767007,118580.0,118570.0,1.08753045]
[1752446745158,0.01767007,118580.0,118570.0,1.39449045]
[1752446747514,0.01767007,118580.0,118570.0,1.62443097]
[1752446749410,0.01767007,118580.0,118570.0,1.39131097]
[1752446749644,0.04019007,118580.0,118570.0,1.28949045]
[1752446751155,0.04220007,118580.0,118570.0,1.28949045]
[1752446751541,0.04220007,118580.0,118570.0,1.08753045]
[1752446752600,0.04220007,118580.0,118570.0,0.95941045]
[1752446752800,0.04220007,118580.0,118570.0,1.08749045]
[1752446755356,0.04220007,118580.0,118570.0,1.39445045]
[1752446758607,0.01767007,118580.0,118570.0,1.64309097]
[1752446758806,0.01767007,118580.0,118570.0,1.53809097]
[1752446760905,0.01767007,118580.0,118570.0,1.31743097]
[1752446765320,0.01767007,118580.0,118570.0,1.62439097]
[1752446768551,0.01767007,118580.0,118570.0,1.51939097]